[Event "Titled Tuesday Blitz July 13 2021"]
[White "Novoselski, Zoran"]
[Black "Wagner, Dennis"]
[WhiteFideId "901970"]
[BlackFideId "24650684"]
[WhiteElo "2327"]
[BlackElo "2355"]
[Result "0-1"]
[Round "10"]
[TimeControl "180+1"]
[Date "2021.07.13"]
[WhiteClock "0:00:12"]
[BlackClock "0:00:13"]

1. e4 {[%clk 0:03:00]}  c5 {[%clk 0:02:59]} 2. Nf3 {[%clk 0:03:00]}  d6 {[%clk 0:02:59]} 3. Bb5+ {[%clk 0:02:58]}  Nd7 {[%clk 0:02:59]} 4. c3 {[%clk 0:02:57]}  Nf6 {[%clk 0:02:58]} 5. Qe2 {[%clk 0:02:56]}  a6 {[%clk 0:02:58]} 6. Ba4 {[%clk 0:02:55]}  b5 {[%clk 0:02:53]} 7. Bc2 {[%clk 0:02:55]}  Bb7 {[%clk 0:02:54]} 8. O-O {[%clk 0:02:54]}  g6 {[%clk 0:02:55]} 9. d4 {[%clk 0:02:52]}  Bg7 {[%clk 0:02:55]} 10. e5 {[%clk 0:02:49]}  Bxf3 {[%clk 0:02:39]} 11. gxf3 {[%clk 0:02:45]}  dxe5 {[%clk 0:02:36]} 12. dxe5 {[%clk 0:02:44]}  Nd5 {[%clk 0:02:35]} 13. f4 {[%clk 0:02:34]}  e6 {[%clk 0:02:34]} 14. Be4 {[%clk 0:02:30]}  N7b6 {[%clk 0:02:31]} 15. Be3 {[%clk 0:02:25]}  Rc8 {[%clk 0:02:28]} 16. Nd2 {[%clk 0:02:23]}  Qh4 {[%clk 0:02:25]} 17. Qf3 {[%clk 0:02:19]}  O-O {[%clk 0:02:22]} 18. Qg3 {[%clk 0:02:12]}  Qe7 {[%clk 0:02:22]} 19. h4 {[%clk 0:02:07]}  Rfd8 {[%clk 0:02:20]} 20. Nf3 {[%clk 0:02:07]}  Nxe3 {[%clk 0:02:14]} 21. fxe3 {[%clk 0:02:06]}  Nc4 {[%clk 0:02:15]} 22. Qf2 {[%clk 0:02:01]}  Rd7 {[%clk 0:01:55]} 23. b3 {[%clk 0:01:59]}  Nb6 {[%clk 0:01:54]} 24. h5 {[%clk 0:01:55]}  Nd5 {[%clk 0:01:50]} 25. Rac1 {[%clk 0:01:42]}  Rcd8 {[%clk 0:01:48]} 26. Kg2 {[%clk 0:01:37]}  b4 {[%clk 0:01:47]} 27. Bxd5 {[%clk 0:01:33]}  Rxd5 {[%clk 0:01:45]} 28. cxb4 {[%clk 0:01:31]}  cxb4 {[%clk 0:01:46]} 29. hxg6 {[%clk 0:01:29]}  hxg6 {[%clk 0:01:46]} 30. Qe2 {[%clk 0:01:24]}  Qb7 {[%clk 0:01:45]} 31. Rfd1 {[%clk 0:01:21]}  Bf8 {[%clk 0:01:40]} 32. Rxd5 {[%clk 0:01:19]}  Qxd5 {[%clk 0:01:40]} 33. Rc2 {[%clk 0:01:17]}  Qe4 {[%clk 0:01:33]} 34. Kf2 {[%clk 0:01:13]}  a5 {[%clk 0:01:30]} 35. Rc4 {[%clk 0:01:03]}  Qb1 {[%clk 0:01:27]} 36. Rd4 {[%clk 0:00:56]}  Rc8 {[%clk 0:01:25]} 37. Rd1 {[%clk 0:00:53]}  Qf5 {[%clk 0:01:20]} 38. Nd4 {[%clk 0:00:46]}  Qh3 {[%clk 0:01:15]} 39. Qf3 {[%clk 0:00:45]}  Qh2+ {[%clk 0:01:12]} 40. Qg2 {[%clk 0:00:44]}  Qxg2+ {[%clk 0:01:07]} 41. Kxg2 {[%clk 0:00:43]}  a4 {[%clk 0:01:08]} 42. Kf3 {[%clk 0:00:42]}  axb3 {[%clk 0:00:59]} 43. axb3 {[%clk 0:00:41]}  Rc3 {[%clk 0:01:00]} 44. Ke2 {[%clk 0:00:39]}  Bc5 {[%clk 0:01:00]} 45. Rd3 {[%clk 0:00:36]}  Bxd4 {[%clk 0:00:55]} 46. exd4 {[%clk 0:00:37]}  Rc2+ {[%clk 0:00:55]} 47. Ke3 {[%clk 0:00:37]}  Rb2 {[%clk 0:00:54]} 48. d5 {[%clk 0:00:35]}  exd5 {[%clk 0:00:54]} 49. Kd4 {[%clk 0:00:36]}  Rf2 {[%clk 0:00:43]} 50. Ke3 {[%clk 0:00:35]}  Rh2 {[%clk 0:00:43]} 51. Kd4 {[%clk 0:00:34]}  Rh4 {[%clk 0:00:42]} 52. Rf3 {[%clk 0:00:33]}  g5 {[%clk 0:00:39]} 53. Kxd5 {[%clk 0:00:32]}  gxf4 {[%clk 0:00:28]} 54. Kc4 {[%clk 0:00:31]}  Kg7 {[%clk 0:00:28]} 55. Kxb4 {[%clk 0:00:31]}  Kg6 {[%clk 0:00:29]} 56. Kc4 {[%clk 0:00:31]}  Kf5 {[%clk 0:00:29]} 57. Kd5 {[%clk 0:00:31]}  Rg4 {[%clk 0:00:20]} 58. b4 {[%clk 0:00:30]}  Rg3 {[%clk 0:00:21]} 59. Rf1 {[%clk 0:00:29]}  Rd3+ {[%clk 0:00:20]} 60. Kc4 {[%clk 0:00:29]}  Rd8 {[%clk 0:00:20]} 61. b5 {[%clk 0:00:26]}  Kxe5 {[%clk 0:00:21]} 62. b6 {[%clk 0:00:25]}  Ke4 {[%clk 0:00:20]} 63. Re1+ {[%clk 0:00:23]}  Kf5 {[%clk 0:00:18]} 64. Re7 {[%clk 0:00:24]}  f6 {[%clk 0:00:18]} 65. b7 {[%clk 0:00:22]}  f3 {[%clk 0:00:18]} 66. Re3 {[%clk 0:00:21]}  Kf4 {[%clk 0:00:18]} 67. Re1 {[%clk 0:00:21]}  f2 {[%clk 0:00:18]} 68. Rb1 {[%clk 0:00:20]}  Rb8 {[%clk 0:00:14]} 69. Kd3 {[%clk 0:00:12]}  Rxb7 {[%clk 0:00:13]} 70. Rf1 {[%clk 0:00:12]}  Kf3 {[%clk 0:00:14]} 71. Kd4 {[%clk 0:00:12]}  Rd7+ {[%clk 0:00:13]} 0-1


[Site "https://www.chess.com"]

[Event "Titled Tuesday Blitz July 13 2021"]
[White "Pastar, Slaven"]
[Black "Costachi, Mihnea"]
[WhiteFideId "14402718"]
[BlackFideId "1217518"]
[WhiteElo "2150"]
[BlackElo "2482"]
[Result "0-1"]
[Round "10"]
[TimeControl "180+1"]
[Date "2021.07.13"]
[WhiteClock "0:00:02"]
[BlackClock "0:01:42"]

1. b3 {[%clk 0:02:39]}  c5 {[%clk 0:03:00]} 2. Bb2 {[%clk 0:02:39]}  d5 {[%clk 0:03:01]} 3. Nf3 {[%clk 0:02:37]}  Nc6 {[%clk 0:03:00]} 4. e3 {[%clk 0:02:38]}  Nf6 {[%clk 0:02:59]} 5. d4 {[%clk 0:02:36]}  cxd4 {[%clk 0:02:57]} 6. Nxd4 {[%clk 0:02:36]}  g6 {[%clk 0:02:57]} 7. c4 {[%clk 0:02:31]}  Bg7 {[%clk 0:02:55]} 8. cxd5 {[%clk 0:02:28]}  Qxd5 {[%clk 0:02:55]} 9. Nc3 {[%clk 0:02:24]}  Qa5 {[%clk 0:02:54]} 10. Bd3 {[%clk 0:01:27]}  Nxd4 {[%clk 0:02:51]} 11. exd4 {[%clk 0:01:27]}  Nd5 {[%clk 0:02:52]} 12. Qd2 {[%clk 0:01:17]}  O-O {[%clk 0:02:46]} 13. O-O {[%clk 0:01:11]}  Bxd4 {[%clk 0:02:38]} 14. Rac1 {[%clk 0:01:09]}  Nxc3 {[%clk 0:02:37]} 15. Bxc3 {[%clk 0:01:09]}  Bxc3 {[%clk 0:02:36]} 16. Qxc3 {[%clk 0:01:08]}  Qg5 {[%clk 0:02:33]} 17. Qc5 {[%clk 0:01:02]}  Qxc5 {[%clk 0:02:24]} 18. Rxc5 {[%clk 0:01:03]}  Rd8 {[%clk 0:02:23]} 19. Bc4 {[%clk 0:01:01]}  b6 {[%clk 0:02:20]} 20. Rc7 {[%clk 0:00:48]}  Rd7 {[%clk 0:02:20]} 21. Rxd7 {[%clk 0:00:45]}  Bxd7 {[%clk 0:02:21]} 22. Rd1 {[%clk 0:00:37]}  Bc6 {[%clk 0:02:21]} 23. Rc1 {[%clk 0:00:37]}  Bb7 {[%clk 0:02:13]} 24. f3 {[%clk 0:00:30]}  Rc8 {[%clk 0:02:12]} 25. Rd1 {[%clk 0:00:28]}  Bc6 {[%clk 0:02:05]} 26. Kf2 {[%clk 0:00:26]}  b5 {[%clk 0:02:04]} 27. Bd3 {[%clk 0:00:24]}  Be8 {[%clk 0:01:59]} 28. Ke3 {[%clk 0:00:24]}  e5 {[%clk 0:01:58]} 29. Be2 {[%clk 0:00:17]}  Rc3+ {[%clk 0:01:51]} 30. Kf2 {[%clk 0:00:05]}  Rc2 {[%clk 0:01:51]} 31. Ke3 {[%clk 0:00:04]}  Kf8 {[%clk 0:01:49]} 32. Rd5 {[%clk 0:00:04]}  Rxa2 {[%clk 0:01:47]} 33. Rxe5 {[%clk 0:00:04]}  Rb2 {[%clk 0:01:45]} 34. Kd4 {[%clk 0:00:02]}  Rxb3 {[%clk 0:01:43]} 35. Kc5 {[%clk 0:00:02]}  a5 {[%clk 0:01:41]} 36. Kb6 {[%clk 0:00:02]}  a4 {[%clk 0:01:42]} 0-1


[Site "https://www.chess.com"]

[Event "Titled Tuesday Blitz July 13 2021"]
[White "Peralta, Eduardo"]
[Black "Cunjalo, Faris"]
[WhiteFideId "3700062"]
[BlackFideId "14410710"]
[WhiteElo "2205"]
[BlackElo "2234"]
[Result "1-0"]
[Round "10"]
[TimeControl "180+1"]
[Date "2021.07.13"]
[WhiteClock "0:00:03"]
[BlackClock "0:00:01"]

1. d4 {[%clk 0:03:00]}  d5 {[%clk 0:02:58]} 2. Nf3 {[%clk 0:02:56]}  Nf6 {[%clk 0:02:57]} 3. Bg5 {[%clk 0:02:53]}  e6 {[%clk 0:02:55]} 4. Nbd2 {[%clk 0:02:50]}  c5 {[%clk 0:02:43]} 5. e3 {[%clk 0:02:50]}  Nbd7 {[%clk 0:02:41]} 6. c3 {[%clk 0:02:45]}  Bd6 {[%clk 0:02:38]} 7. Bd3 {[%clk 0:02:43]}  h6 {[%clk 0:02:35]} 8. Bh4 {[%clk 0:02:37]}  Qc7 {[%clk 0:02:35]} 9. O-O {[%clk 0:02:35]}  O-O {[%clk 0:02:34]} 10. Qe2 {[%clk 0:02:27]}  Re8 {[%clk 0:02:11]} 11. a4 {[%clk 0:02:13]}  b6 {[%clk 0:01:41]} 12. e4 {[%clk 0:02:11]}  e5 {[%clk 0:01:38]} 13. Bxf6 {[%clk 0:02:06]}  Nxf6 {[%clk 0:01:37]} 14. dxe5 {[%clk 0:02:06]}  Bxe5 {[%clk 0:01:31]} 15. Nxe5 {[%clk 0:01:46]}  Qxe5 {[%clk 0:01:19]} 16. f4 {[%clk 0:01:41]}  Qc7 {[%clk 0:01:10]} 17. e5 {[%clk 0:01:41]}  Nh7 {[%clk 0:01:02]} 18. Rae1 {[%clk 0:01:36]}  Bb7 {[%clk 0:00:55]} 19. Bc2 {[%clk 0:01:24]}  Nf8 {[%clk 0:00:53]} 20. Qg4 {[%clk 0:01:15]}  Rad8 {[%clk 0:00:50]} 21. Re3 {[%clk 0:01:08]}  Bc8 {[%clk 0:00:42]} 22. Qe2 {[%clk 0:00:58]}  d4 {[%clk 0:00:40]} 23. Rg3 {[%clk 0:00:57]}  f5 {[%clk 0:00:30]} 24. Nc4 {[%clk 0:00:54]}  Ba6 {[%clk 0:00:28]} 25. Bxf5 {[%clk 0:00:50]}  Qf7 {[%clk 0:00:28]} 26. Bd3 {[%clk 0:00:45]}  dxc3 {[%clk 0:00:28]} 27. bxc3 {[%clk 0:00:46]}  Rxd3 {[%clk 0:00:27]} 28. Nd6 {[%clk 0:00:43]}  Rxd6 {[%clk 0:00:21]} 29. Qxa6 {[%clk 0:00:40]}  Rd2 {[%clk 0:00:17]} 30. Qb5 {[%clk 0:00:37]}  Re7 {[%clk 0:00:14]} 31. a5 {[%clk 0:00:33]}  Qd5 {[%clk 0:00:14]} 32. axb6 {[%clk 0:00:29]}  axb6 {[%clk 0:00:15]} 33. Qxb6 {[%clk 0:00:28]}  Ne6 {[%clk 0:00:14]} 34. Qb8+ {[%clk 0:00:26]}  Kh7 {[%clk 0:00:12]} 35. Qb1+ {[%clk 0:00:25]}  Kh8 {[%clk 0:00:10]} 36. Qb8+ {[%clk 0:00:24]}  Qd8 {[%clk 0:00:10]} 37. Qb3 {[%clk 0:00:18]}  Rd3 {[%clk 0:00:10]} 38. Qc4 {[%clk 0:00:17]}  Rxg3 {[%clk 0:00:10]} 39. hxg3 {[%clk 0:00:16]}  Qd2 {[%clk 0:00:08]} 40. Kh2 {[%clk 0:00:14]}  Qe3 {[%clk 0:00:06]} 41. Rf3 {[%clk 0:00:14]}  Qe1 {[%clk 0:00:05]} 42. Qd3 {[%clk 0:00:12]}  Qa1 {[%clk 0:00:02]} 43. Qe4 {[%clk 0:00:12]}  Qa7 {[%clk 0:00:03]} 44. Rd3 {[%clk 0:00:10]}  Qb7 {[%clk 0:00:03]} 45. Qxb7 {[%clk 0:00:07]}  Rxb7 {[%clk 0:00:02]} 46. f5 {[%clk 0:00:07]}  Ng5 {[%clk 0:00:02]} 47. Rd5 {[%clk 0:00:07]}  Rc7 {[%clk 0:00:02]} 48. e6 {[%clk 0:00:07]}  Kg8 {[%clk 0:00:02]} 49. Rd8+ {[%clk 0:00:05]}  Kh7 {[%clk 0:00:01]} 50. c4 {[%clk 0:00:05]}  Ne4 {[%clk 0:00:01]} 51. Rf8 {[%clk 0:00:03]}  Nf6 {[%clk 0:00:01]} 52. Kh3 {[%clk 0:00:03]} 1-0


[Site "https://www.chess.com"]

[Event "Titled Tuesday Blitz July 13 2021"]
[White "Piesik, Piotr"]
[Black "Tsaruk, Maksim"]
[WhiteFideId "1136194"]
[BlackFideId "13511173"]
[WhiteElo "2354"]
[BlackElo "2184"]
[Result "1/2-1/2"]
[Round "10"]
[TimeControl "180+1"]
[Date "2021.07.13"]
[WhiteClock "0:00:03"]
[BlackClock "0:00:07"]

1. Nf3 {[%clk 0:03:00]}  Nf6 {[%clk 0:02:59]} 2. g3 {[%clk 0:03:00]}  d5 {[%clk 0:02:56]} 3. Bg2 {[%clk 0:03:01]}  c5 {[%clk 0:02:56]} 4. O-O {[%clk 0:03:01]}  e6 {[%clk 0:02:56]} 5. d3 {[%clk 0:03:02]}  Nc6 {[%clk 0:02:56]} 6. Nbd2 {[%clk 0:03:03]}  Be7 {[%clk 0:02:56]} 7. e4 {[%clk 0:03:03]}  O-O {[%clk 0:02:57]} 8. Qe2 {[%clk 0:03:03]}  b5 {[%clk 0:02:55]} 9. e5 {[%clk 0:03:03]}  Nd7 {[%clk 0:02:55]} 10. c3 {[%clk 0:03:04]}  a5 {[%clk 0:02:54]} 11. h4 {[%clk 0:03:03]}  b4 {[%clk 0:02:54]} 12. c4 {[%clk 0:03:03]}  Bb7 {[%clk 0:02:40]} 13. cxd5 {[%clk 0:02:55]}  exd5 {[%clk 0:02:39]} 14. e6 {[%clk 0:02:56]}  Nf6 {[%clk 0:02:23]} 15. exf7+ {[%clk 0:02:54]}  Rxf7 {[%clk 0:02:24]} 16. Ng5 {[%clk 0:02:46]}  Nd4 {[%clk 0:02:24]} 17. Qd1 {[%clk 0:02:46]}  Rf8 {[%clk 0:02:08]} 18. Ndf3 {[%clk 0:02:46]}  Nxf3+ {[%clk 0:02:03]} 19. Qxf3 {[%clk 0:02:45]}  Ne4 {[%clk 0:01:52]} 20. Qe2 {[%clk 0:02:32]}  Nxg5 {[%clk 0:01:46]} 21. hxg5 {[%clk 0:02:32]}  Bxg5 {[%clk 0:01:44]} 22. Bxg5 {[%clk 0:02:27]}  Qxg5 {[%clk 0:01:43]} 23. Qe6+ {[%clk 0:02:28]}  Kh8 {[%clk 0:01:42]} 24. Qb6 {[%clk 0:02:28]}  Ba6 {[%clk 0:00:54]} 25. Qxc5 {[%clk 0:02:27]}  Bxd3 {[%clk 0:00:50]} 26. Rfd1 {[%clk 0:02:27]}  Bg6 {[%clk 0:00:41]} 27. Rxd5 {[%clk 0:02:24]}  Qf6 {[%clk 0:00:39]} 28. Rad1 {[%clk 0:02:14]}  Qxb2 {[%clk 0:00:34]} 29. R5d2 {[%clk 0:02:13]}  Qc3 {[%clk 0:00:32]} 30. Qb6 {[%clk 0:01:58]}  Rae8 {[%clk 0:00:22]} 31. Rd8 {[%clk 0:01:29]}  a4 {[%clk 0:00:18]} 32. Rxe8 {[%clk 0:01:19]}  Rxe8 {[%clk 0:00:17]} 33. Qb5 {[%clk 0:01:14]}  b3 {[%clk 0:00:14]} 34. axb3 {[%clk 0:01:14]}  axb3 {[%clk 0:00:14]} 35. Be4 {[%clk 0:01:01]}  Qe5 {[%clk 0:00:10]} 36. Qxe5 {[%clk 0:00:50]}  Rxe5 {[%clk 0:00:11]} 37. Bxg6 {[%clk 0:00:44]}  hxg6 {[%clk 0:00:12]} 38. Rd8+ {[%clk 0:00:44]}  Kh7 {[%clk 0:00:12]} 39. Rb8 {[%clk 0:00:44]}  Re1+ {[%clk 0:00:13]} 40. Kg2 {[%clk 0:00:45]}  Rb1 {[%clk 0:00:14]} 41. f4 {[%clk 0:00:38]}  g5 {[%clk 0:00:10]} 42. fxg5 {[%clk 0:00:35]}  Kg6 {[%clk 0:00:10]} 43. Rb5 {[%clk 0:00:34]}  Kh5 {[%clk 0:00:07]} 44. Rb7 {[%clk 0:00:27]}  g6 {[%clk 0:00:03]} 45. Rb5 {[%clk 0:00:20]}  Kg4 {[%clk 0:00:03]} 46. Rb4+ {[%clk 0:00:19]}  Kxg5 {[%clk 0:00:04]} 47. Kf3 {[%clk 0:00:17]}  Kf5 {[%clk 0:00:04]} 48. Rb5+ {[%clk 0:00:16]}  Kf6 {[%clk 0:00:04]} 49. Kg4 {[%clk 0:00:16]}  b2 {[%clk 0:00:02]} 50. Rb6+ {[%clk 0:00:16]}  Ke5 {[%clk 0:00:03]} 51. Kg5 {[%clk 0:00:13]}  Kd4 {[%clk 0:00:02]} 52. Kxg6 {[%clk 0:00:10]}  Kc3 {[%clk 0:00:02]} 53. Rc6+ {[%clk 0:00:10]}  Kd2 {[%clk 0:00:02]} 54. Rd6+ {[%clk 0:00:10]}  Ke3 {[%clk 0:00:03]} 55. Rb6 {[%clk 0:00:10]}  Kf3 {[%clk 0:00:03]} 56. Rb3+ {[%clk 0:00:09]}  Kg4 {[%clk 0:00:04]} 57. Kg7 {[%clk 0:00:07]}  Kg5 {[%clk 0:00:04]} 58. Rb4 {[%clk 0:00:04]}  Kf5 {[%clk 0:00:04]} 59. g4+ {[%clk 0:00:02]}  Kg5 {[%clk 0:00:05]} 60. Kg8 {[%clk 0:00:02]}  Kg6 {[%clk 0:00:06]} 61. Rb6+ {[%clk 0:00:01]}  Kg5 {[%clk 0:00:06]} 62. Rb4 {[%clk 0:00:02]}  Kh6 {[%clk 0:00:07]} 63. Rb6+ {[%clk 0:00:02]}  Kg5 {[%clk 0:00:07]} 64. Rb4 {[%clk 0:00:03]} 1/2-1/2


[Site "https://www.chess.com"]

[Event "Titled Tuesday Blitz July 13 2021"]
[White "Pourkashiyan, Atousa"]
[Black "Krivonosov, Oleg"]
[WhiteFideId "12502014"]
[BlackFideId "11600349"]
[WhiteElo "2285"]
[BlackElo "2469"]
[Result "1-0"]
[Round "10"]
[TimeControl "180+1"]
[Date "2021.07.13"]
[WhiteClock "0:00:42"]
[BlackClock "0:00:47"]

1. e4 {[%clk 0:03:00]}  e5 {[%clk 0:02:59]} 2. Nf3 {[%clk 0:03:01]}  Nc6 {[%clk 0:02:58]} 3. Bb5 {[%clk 0:03:01]}  Nf6 {[%clk 0:02:57]} 4. d3 {[%clk 0:02:58]}  Bc5 {[%clk 0:02:56]} 5. c3 {[%clk 0:02:58]}  d5 {[%clk 0:02:55]} 6. exd5 {[%clk 0:02:58]}  Qxd5 {[%clk 0:02:54]} 7. Bc4 {[%clk 0:02:58]}  Qd6 {[%clk 0:02:54]} 8. O-O {[%clk 0:02:58]}  O-O {[%clk 0:02:53]} 9. h3 {[%clk 0:02:56]}  Bf5 {[%clk 0:02:48]} 10. b4 {[%clk 0:02:55]}  Bb6 {[%clk 0:02:47]} 11. Re1 {[%clk 0:02:48]}  Rad8 {[%clk 0:02:43]} 12. a4 {[%clk 0:01:45]}  a6 {[%clk 0:02:28]} 13. b5 {[%clk 0:01:39]}  axb5 {[%clk 0:02:22]} 14. axb5 {[%clk 0:01:39]}  Ne7 {[%clk 0:02:12]} 15. Ba3 {[%clk 0:01:36]}  Bc5 {[%clk 0:02:11]} 16. Bxc5 {[%clk 0:01:35]}  Qxc5 {[%clk 0:02:11]} 17. Nxe5 {[%clk 0:01:34]}  Ng6 {[%clk 0:02:05]} 18. Nxg6 {[%clk 0:01:10]}  Bxg6 {[%clk 0:02:02]} 19. Na3 {[%clk 0:01:10]}  Nd5 {[%clk 0:01:52]} 20. d4 {[%clk 0:01:06]}  Qd6 {[%clk 0:01:45]} 21. Qf3 {[%clk 0:01:02]}  c6 {[%clk 0:01:40]} 22. Bb3 {[%clk 0:00:52]}  Qf4 {[%clk 0:01:11]} 23. Bxd5 {[%clk 0:00:49]}  Qxf3 {[%clk 0:01:11]} 24. Bxf3 {[%clk 0:00:49]}  Rd6 {[%clk 0:01:06]} 25. Nc4 {[%clk 0:00:47]}  Rf6 {[%clk 0:01:05]} 26. bxc6 {[%clk 0:00:46]}  bxc6 {[%clk 0:01:04]} 27. Ne5 {[%clk 0:00:47]}  Rc8 {[%clk 0:01:00]} 28. Nxc6 {[%clk 0:00:44]}  Kf8 {[%clk 0:00:57]} 29. d5 {[%clk 0:00:42]}  Rd6 {[%clk 0:00:48]} 30. c4 {[%clk 0:00:42]}  Bf5 {[%clk 0:00:47]} 31. c5 {[%clk 0:00:42]}  Rd7 {[%clk 0:00:47]} 32. d6 {[%clk 0:00:42]} 1-0


[Site "https://www.chess.com"]

[Event "Titled Tuesday Blitz July 13 2021"]
[White "Przybylski, Wojciech"]
[Black "Damjanovic, Vladimir"]
[WhiteFideId "1117599"]
[BlackFideId "903795"]
[WhiteElo "2317"]
[BlackElo "2374"]
[Result "1-0"]
[Round "10"]
[TimeControl "180+1"]
[Date "2021.07.13"]
[WhiteClock "0:00:06"]
[BlackClock "0:00:01"]

1. e4 {[%clk 0:03:00]}  c5 {[%clk 0:02:57]} 2. Nf3 {[%clk 0:02:58]}  d6 {[%clk 0:02:57]} 3. d4 {[%clk 0:02:58]}  cxd4 {[%clk 0:02:58]} 4. Nxd4 {[%clk 0:02:59]}  Nf6 {[%clk 0:02:58]} 5. Nc3 {[%clk 0:02:59]}  Bd7 {[%clk 0:02:58]} 6. Be3 {[%clk 0:02:58]}  Ng4 {[%clk 0:02:57]} 7. Bc1 {[%clk 0:02:58]}  Nf6 {[%clk 0:02:57]} 8. h3 {[%clk 0:02:58]}  Nc6 {[%clk 0:02:50]} 9. Be3 {[%clk 0:02:57]}  h5 {[%clk 0:02:43]} 10. g3 {[%clk 0:02:55]}  g6 {[%clk 0:02:30]} 11. Bg2 {[%clk 0:02:54]}  Qc8 {[%clk 0:02:30]} 12. Nd5 {[%clk 0:02:37]}  Nxd5 {[%clk 0:02:30]} 13. exd5 {[%clk 0:02:36]}  Ne5 {[%clk 0:02:30]} 14. b3 {[%clk 0:02:10]}  Qc3+ {[%clk 0:02:19]} 15. Kf1 {[%clk 0:02:09]}  Bg7 {[%clk 0:02:19]} 16. Kg1 {[%clk 0:01:55]}  h4 {[%clk 0:01:02]} 17. g4 {[%clk 0:01:53]}  Bxg4 {[%clk 0:01:03]} 18. hxg4 {[%clk 0:01:32]}  Nxg4 {[%clk 0:01:04]} 19. Rh3 {[%clk 0:01:30]}  Nxe3 {[%clk 0:00:58]} 20. fxe3 {[%clk 0:01:29]}  Be5 {[%clk 0:00:39]} 21. Rb1 {[%clk 0:01:23]}  Rc8 {[%clk 0:00:26]} 22. Bf1 {[%clk 0:00:41]}  Rh5 {[%clk 0:00:18]} 23. Kh1 {[%clk 0:00:28]}  Rg5 {[%clk 0:00:14]} 24. Bc4 {[%clk 0:00:24]}  Rg3 {[%clk 0:00:03]} 25. Rxg3 {[%clk 0:00:23]}  hxg3 {[%clk 0:00:03]} 26. Qd3 {[%clk 0:00:22]}  Qxd3 {[%clk 0:00:02]} 27. Bxd3 {[%clk 0:00:21]}  a6 {[%clk 0:00:01]} 28. Kg2 {[%clk 0:00:20]}  f5 {[%clk 0:00:01]} 29. Rh1 {[%clk 0:00:19]}  Kf7 {[%clk 0:00:02]} 30. c4 {[%clk 0:00:19]}  Kf6 {[%clk 0:00:02]} 31. Ne2 {[%clk 0:00:18]}  b5 {[%clk 0:00:02]} 32. Nxg3 {[%clk 0:00:18]}  bxc4 {[%clk 0:00:02]} 33. Bxc4 {[%clk 0:00:19]}  a5 {[%clk 0:00:02]} 34. Ne2 {[%clk 0:00:16]}  a4 {[%clk 0:00:02]} 35. Nd4 {[%clk 0:00:15]}  axb3 {[%clk 0:00:02]} 36. Bxb3 {[%clk 0:00:15]}  Rc3 {[%clk 0:00:02]} 37. Kf2 {[%clk 0:00:14]}  f4 {[%clk 0:00:02]} 38. Ne2 {[%clk 0:00:13]}  Rxe3 {[%clk 0:00:02]} 39. Rh8 {[%clk 0:00:12]}  Kg5 {[%clk 0:00:01]} 40. Rf8 {[%clk 0:00:12]}  Kg4 {[%clk 0:00:01]} 41. Ng1 {[%clk 0:00:12]}  Rg3 {[%clk 0:00:01]} 42. Bd1+ {[%clk 0:00:12]}  Kg5 {[%clk 0:00:01]} 43. Nf3+ {[%clk 0:00:12]}  Kh6 {[%clk 0:00:02]} 44. Nxe5 {[%clk 0:00:12]}  dxe5 {[%clk 0:00:02]} 45. Bc2 {[%clk 0:00:12]}  Kg5 {[%clk 0:00:02]} 46. Rg8 {[%clk 0:00:12]}  Kf6 {[%clk 0:00:02]} 47. Rf8+ {[%clk 0:00:11]}  Kg7 {[%clk 0:00:02]} 48. Ra8 {[%clk 0:00:10]}  Re3 {[%clk 0:00:03]} 49. Ra4 {[%clk 0:00:10]}  g5 {[%clk 0:00:02]} 50. Bf5 {[%clk 0:00:09]}  Kf6 {[%clk 0:00:02]} 51. Be6 {[%clk 0:00:09]}  e4 {[%clk 0:00:01]} 52. Rb4 {[%clk 0:00:07]}  Ke5 {[%clk 0:00:01]} 53. Rb3 {[%clk 0:00:06]} 1-0


[Site "https://www.chess.com"]

[Event "Titled Tuesday Blitz July 13 2021"]
[White "Salazar Olchowski, Gabriel Anton"]
[Black "Koelle, Tobias"]
[WhiteFideId "3920747"]
[BlackFideId "16207378"]
[WhiteElo "1892"]
[BlackElo "2364"]
[Result "0-1"]
[Round "10"]
[TimeControl "180+1"]
[Date "2021.07.13"]
[WhiteClock "0:00:01"]
[BlackClock "0:00:23"]

1. e4 {[%clk 0:03:00]}  c5 {[%clk 0:02:57]} 2. Nf3 {[%clk 0:03:01]}  Nf6 {[%clk 0:02:55]} 3. Nc3 {[%clk 0:03:00]}  Nc6 {[%clk 0:02:51]} 4. Bb5 {[%clk 0:02:57]}  Nd4 {[%clk 0:02:50]} 5. Bc4 {[%clk 0:02:53]}  e6 {[%clk 0:02:48]} 6. O-O {[%clk 0:02:52]}  d6 {[%clk 0:02:46]} 7. Re1 {[%clk 0:02:45]}  Be7 {[%clk 0:02:33]} 8. d3 {[%clk 0:02:42]}  O-O {[%clk 0:02:33]} 9. Nxd4 {[%clk 0:02:38]}  cxd4 {[%clk 0:02:33]} 10. Ne2 {[%clk 0:02:39]}  e5 {[%clk 0:02:27]} 11. Ng3 {[%clk 0:02:37]}  Re8 {[%clk 0:02:25]} 12. c3 {[%clk 0:02:36]}  dxc3 {[%clk 0:02:21]} 13. bxc3 {[%clk 0:02:36]}  Bf8 {[%clk 0:02:20]} 14. Qb3 {[%clk 0:02:32]}  Qc7 {[%clk 0:02:12]} 15. Bg5 {[%clk 0:02:28]}  Ng4 {[%clk 0:01:58]} 16. h3 {[%clk 0:02:18]}  h6 {[%clk 0:01:58]} 17. hxg4 {[%clk 0:02:10]}  hxg5 {[%clk 0:01:57]} 18. f3 {[%clk 0:02:07]}  g6 {[%clk 0:01:52]} 19. Nf1 {[%clk 0:01:50]}  Be6 {[%clk 0:01:36]} 20. Ne3 {[%clk 0:01:46]}  Rac8 {[%clk 0:01:34]} 21. Rab1 {[%clk 0:01:05]}  b6 {[%clk 0:01:22]} 22. Qb5 {[%clk 0:00:54]}  Qc5 {[%clk 0:01:19]} 23. Qxc5 {[%clk 0:00:52]}  Rxc5 {[%clk 0:01:20]} 24. Rb3 {[%clk 0:00:45]}  Rec8 {[%clk 0:01:18]} 25. Reb1 {[%clk 0:00:27]}  Be7 {[%clk 0:01:14]} 26. Rb5 {[%clk 0:00:23]}  Rxb5 {[%clk 0:01:10]} 27. Rxb5 {[%clk 0:00:21]}  Bd7 {[%clk 0:01:09]} 28. Rb3 {[%clk 0:00:20]}  Be6 {[%clk 0:01:04]} 29. Bxe6 {[%clk 0:00:18]}  fxe6 {[%clk 0:01:05]} 30. c4 {[%clk 0:00:18]}  Kf7 {[%clk 0:01:03]} 31. a4 {[%clk 0:00:18]}  Rc5 {[%clk 0:00:59]} 32. Rb5 {[%clk 0:00:17]}  Rc6 {[%clk 0:00:58]} 33. Nc2 {[%clk 0:00:18]}  Rc8 {[%clk 0:00:54]} 34. Nb4 {[%clk 0:00:18]}  Rc7 {[%clk 0:00:51]} 35. Kf2 {[%clk 0:00:18]}  Rc8 {[%clk 0:00:49]} 36. Ke3 {[%clk 0:00:18]}  Ke8 {[%clk 0:00:48]} 37. Nc2 {[%clk 0:00:16]}  Kd7 {[%clk 0:00:47]} 38. Rb1 {[%clk 0:00:16]}  Rh8 {[%clk 0:00:47]} 39. Nb4 {[%clk 0:00:14]}  Rh2 {[%clk 0:00:44]} 40. Kf2 {[%clk 0:00:15]}  Kc7 {[%clk 0:00:42]} 41. Na6+ {[%clk 0:00:14]}  Kb7 {[%clk 0:00:42]} 42. Nb4 {[%clk 0:00:15]}  Rh8 {[%clk 0:00:39]} 43. a5 {[%clk 0:00:15]}  Bd8 {[%clk 0:00:37]} 44. a6+ {[%clk 0:00:10]}  Kc7 {[%clk 0:00:37]} 45. Nc2 {[%clk 0:00:10]}  Be7 {[%clk 0:00:37]} 46. Na3 {[%clk 0:00:10]}  Kc6 {[%clk 0:00:34]} 47. Nb5 {[%clk 0:00:10]}  Kc5 {[%clk 0:00:27]} 48. Ke3 {[%clk 0:00:09]}  d5 {[%clk 0:00:26]} 49. cxd5 {[%clk 0:00:04]}  exd5 {[%clk 0:00:27]} 50. Nxa7 {[%clk 0:00:05]}  d4+ {[%clk 0:00:25]} 51. Ke2 {[%clk 0:00:02]}  Ra8 {[%clk 0:00:25]} 52. Rb5+ {[%clk 0:00:02]}  Kd6 {[%clk 0:00:26]} 53. Rd5+ {[%clk 0:00:01]}  Kc7 {[%clk 0:00:22]} 54. Nb5+ {[%clk 0:00:01]}  Kc6 {[%clk 0:00:23]} 0-1


[Site "https://www.chess.com"]